[Event "Queens Festival Europe 2022"]
[Site "Tornelo"]
[Date "2022.06.19"]
[Round "10.2"]
[White "Rybackova, Lucie"]
[Black "Thornton, Filipina"]
[Result "0-1"]
[ECO "D78"]
[WhiteElo "1696"]
[BlackElo "1660"]
[Annotator "NA RC"]
[PlyCount "88"]
[EventDate "2022.06.19"]
[EventType "swiss"]
[EventCountry "NET"]
[SourceTitle "playchess.com"]
[Source "ChessBase"]
[SourceQuality "1"]
[TimeControl "180+2"]

1. d4 {[%emt 0:00:02]} Nf6 {[%emt 0:00:05]} 2. Nf3 {[%emt 0:00:03]} g6 {[%emt 0:00:02]} 3. g3 {[%emt 0:00:03]} Bg7 {[%emt 0:00:01]} 4. Bg2 {[%emt 0:00:03]} c6 {[%emt 0:00:01]} 5. c4 {[%emt 0:00:06]} d5 {[%emt 0:00:02]} 6. Nc3 {[%emt 0:00:07]} O-O {[%emt 0:00:15]} 7. O-O {[%emt 0:00:04]} Bg4 {[%emt 0:00:09]} 8. Ne5 {[%emt 0:00:11]} dxc4 {[%emt 0:00:07]} 9. Nxc4 {[%emt 0:00:18]} Nbd7 {[%emt 0:00:07]} 10. h3 {[%emt 0:00:04]} Be6 {[%emt 0:00:03]} 11. Na3 {[%emt 0:00:40]} Nd5 {[%emt 0:00:08]} 12. Nc2 {[%emt 0:00:05]} N7f6 {[%emt 0:00:07]} 13. e4 {[%emt 0:00:04]} Nxc3 {[%emt 0:00:06]} 14. bxc3 {[%emt 0:00:02]} Qa5 {[%emt 0:00:03]} 15. Qd3 {[%emt 0:00:15]} Rfd8 {[%emt 0:00:03]} 16. Be3 {[%emt 0:00:07]} Rac8 {[%emt 0:00:10]} 17. f4 {[%emt 0:00:13]} Qa4 {[%emt 0:00:08]} 18. Rfd1 {[%emt 0:00:25]} Bc4 {[%emt 0:00:02]} 19. Qd2 {[%emt 0:00:02]} c5 {[%emt 0:00:08]} 20. d5 {[%emt 0:00:03]} b6 {[%emt 0:00:04]} 21. Bf2 {[%emt 0:00:04]} Ba6 {[%emt 0:00:05]} 22. Ne3 {[%emt 0:00:03]} Nxe4 {[%emt 0:00:03]} 23. Bxe4 {[%emt 0:00:04]} Qxe4 {[%emt 0:00:01]} 24. Rab1 {[%emt 0:00:22]} Bb7 {[%emt 0:00:14]} 25. c4 {[%emt 0:00:10]} Bd4 {[%emt 0:00:06]} 26. Re1 {[%emt 0:00:02]} Qf3 {[%emt 0:00:06]} 27. Ng4 {[%emt 0:00:03]} Bxf2+ {[%emt 0:00:07]} 28. Qxf2 {[%emt 0:00:02]} Qc3 {[%emt 0:00:09]} 29. Rbc1 {[%emt 0:00:02]} Qa3 {[%emt 0:00:06]} 30. Qe3 {[%emt 0:00:03]} Qxa2 {[%emt 0:00:04]} 31. Qxe7 {[%emt 0:00:02]} Qb2 {[%emt 0:00:06]} 32. Nf6+ {[%emt 0:00:02]} Kg7 {[%emt 0:00:05]} 33. d6 {[%emt 0:00:02]} Qxf6 {[%emt 0:00:04]} 34. Qxb7 {[%emt 0:00:02]} Qxd6 {[%emt 0:00:05]} 35. Qxa7 {[%emt 0:00:01]} Qd4+ {[%emt 0:00:02]} 36. Kh1 {[%emt 0:00:03]} Qxc4 {[%emt 0:00:07]} 37. Qxb6 {[%emt 0:00:02]} Qd5+ {[%emt 0:00:03]} 38. Kg1 {[%emt 0:00:05]} Qd4+ {[%emt 0:00:04]} 39. Kh1 {[%emt 0:00:01]} Qd3 {[%emt 0:00:06]} 40. Qb2+ {[%emt 0:00:03]} Kg8 {[%emt 0:00:06]} 41. Qg2 {[%emt 0:00:03]} c4 {[%emt 0:00:04]} 42. Qf2 {[%emt 0:00:02]} c3 {[%emt 0:00:04]} 43. Re3 {[%emt 0:00:02]} Qd5+ {[%emt 0:00:04]} 44. Qg2 {[%emt 0:00:04]} Qd2 {[%emt 0:00:08]} 0-1

[Event "Queens Festival Europe 2022"]
[Site "Tornelo"]
[Date "2022.06.19"]
[Round "10.2"]
[White "Bakhshizada, Asnad"]
[Black "Helgadottir, Idunn"]
[Result "1-0"]
[ECO "E52"]
[WhiteElo "1052"]
[BlackElo "1570"]
[Annotator "NA RC"]
[PlyCount "77"]
[EventDate "2022.06.19"]
[EventType "swiss"]
[EventCountry "NET"]
[SourceTitle "playchess.com"]
[Source "ChessBase"]
[SourceQuality "1"]
[TimeControl "180+2"]

1. d4 {[%emt 0:00:02]} Nf6 {[%emt 0:00:05]} 2. c4 {[%emt 0:00:03]} e6 {[%emt 0:00:03]} 3. Nc3 {[%emt 0:00:01]} Bb4 {[%emt 0:00:02]} 4. e3 {[%emt 0:00:05]} O-O {[%emt 0:00:04]} 5. Nf3 {[%emt 0:00:01]} d5 {[%emt 0:00:02]} 6. cxd5 {[%emt 0:00:02]} Nxd5 {[%emt 0:00:07]} 7. Bd2 {[%emt 0:00:03]} b6 {[%emt 0:00:20]} 8. Bd3 {[%emt 0:00:03]} Bb7 {[%emt 0:00:08]} 9. O-O {[%emt 0:00:02]} Nxc3 {[%emt 0:00:04]} 10. bxc3 {[%emt 0:00:04]} Bd6 {[%emt 0:00:03]} 11. e4 {[%emt 0:00:04]} Nd7 {[%emt 0:00:40]} 12. e5 {[%emt 0:00:03]} Be7 {[%emt 0:00:01]} 13. Re1 {[%emt 0:00:13]} c5 {[%emt 0:00:05]} 14. Be3 {[%emt 0:00:06]} cxd4 {[%emt 0:00:03]} 15. cxd4 {[%emt 0:00:06]} Bb4 {[%emt 0:00:06]} 16. Re2 {[%emt 0:00:08]} Bxf3 {[%emt 0:00:04]} 17. gxf3 {[%emt 0:00:02]} Qh4 {[%emt 0:00:07]} 18. Be4 {[%emt 0:00:12]} Rac8 {[%emt 0:00:12]} 19. Qf1 {[%emt 0:00:06]} f5 {[%emt 0:00:11]} 20. Bd3 {[%emt 0:00:17]} Bc3 {[%emt 0:00:04]} 21. Rc1 {[%emt 0:00:11]} Bxd4 {[%emt 0:00:01]} 22. Rxc8 {[%emt 0:00:09]} Rxc8 {[%emt 0:00:03]} 23. Ba6 {[%emt 0:00:06]} Rc7 {[%emt 0:00:08]} 24. f4 {[%emt 0:00:19]} Bxe3 {[%emt 0:00:15]} 25. fxe3 {[%emt 0:00:03]} Rc3 {[%emt 0:00:05]} 26. Rd2 {[%emt 0:00:15]} Qg4+ {[%emt 0:00:08]} 27. Kh1 {[%emt 0:00:12]} Nc5 {[%emt 0:00:22]} 28. Rd8+ {[%emt 0:00:04]} Kf7 {[%emt 0:00:05]} 29. Be2 {[%emt 0:00:12]} Qh4 {[%emt 0:00:07]} 30. Rc8 {[%emt 0:00:10]} Rxe3 {[%emt 0:00:03]} 31. Rc7+ {[%emt 0:00:03]} Kg6 {[%emt 0:00:02]} 32. Qg1+ {[%emt 0:00:10]} Rg3 {[%emt 0:00:11]} 33. Qxg3+ {[%emt 0:00:04]} Qxg3 {[%emt 0:00:03]} 34. hxg3 {[%emt 0:00:03]} Ne4 {[%emt 0:00:02]} 35. Bb5 {[%emt 0:00:03]} Nxg3+ {[%emt 0:00:02]} 36. Kg2 {[%emt 0:00:03]} Nh5 {[%emt 0:00:04]} 37. Be8+ {[%emt 0:00:02]} Kh6 {[%emt 0:00:01]} 38. Bxh5 {[%emt 0:00:02]} Kxh5 {[%emt 0:00:01]} 39. Rxg7 {[%emt 0:00:03]} 1-0

[Event "Queens Festival Europe 2022"]
[Site "Tornelo"]
[Date "2022.06.19"]
[Round "10.3"]
[White "Okuyaz, Duru"]
[Black "Ayzenberg, Alena"]
[Result "1/2-1/2"]
[ECO "C00"]
[WhiteElo "2090"]
[BlackElo "2016"]
[Annotator "NA RC"]
[PlyCount "185"]
[EventDate "2022.06.19"]
[EventType "swiss"]
[EventCountry "NET"]
[SourceTitle "playchess.com"]
[Source "ChessBase"]
[SourceQuality "1"]
[TimeControl "180+2"]

1. e4 {[%emt 0:00:02]} e6 {[%emt 0:00:04]} 2. d3 {[%emt 0:00:02]} d5 {[%emt 0:00:02]} 3. Nd2 {[%emt 0:00:02]} Nf6 {[%emt 0:00:03]} 4. Ngf3 {[%emt 0:00:02]} Nc6 {[%emt 0:00:04]} 5. g3 {[%emt 0:00:05]} dxe4 {[%emt 0:00:02]} 6. dxe4 {[%emt 0:00:01]} e5 {[%emt 0:00:02]} 7. Bg2 {[%emt 0:00:01]} Bc5 {[%emt 0:00:06]} 8. O-O {[%emt 0:00:02]} a5 {[%emt 0:00:03]} 9. c3 {[%emt 0:00:01]} O-O {[%emt 0:00:06]} 10. Qe2 {[%emt 0:00:13]} b6 {[%emt 0:00:05]} 11. Rd1 {[%emt 0:00:59]} Ba6 {[%emt 0:00:21]} 12. Nc4 {[%emt 0:00:01]} Bxc4 {[%emt 0:00:29]} 13. Qc2 {[%emt 0:00:44]} Qe7 {[%emt 0:00:17]} 14. b3 {[%emt 0:00:02]} Ba6 {[%emt 0:00:06]} 15. Bg5 {[%emt 0:00:06]} Rfd8 {[%emt 0:00:16]} 16. Nh4 {[%emt 0:00:05]} Bc8 {[%emt 0:00:18]} 17. a3 {[%emt 0:00:06]} Be6 {[%emt 0:00:09]} 18. b4 {[%emt 0:00:02]} axb4 {[%emt 0:00:02]} 19. cxb4 {[%emt 0:00:02]} Bd4 {[%emt 0:00:06]} 20. Qxc6 {[%emt 0:00:22]} Bxa1 {[%emt 0:00:02]} 21. Rxa1 {[%emt 0:00:01]} Qd7 {[%emt 0:00:10]} 22. Qc3 {[%emt 0:00:02]} Qd4 {[%emt 0:00:05]} 23. Qe1 {[%emt 0:00:02]} Bb3 {[%emt 0:00:21]} 24. Nf5 {[%emt 0:00:06]} Qd3 {[%emt 0:00:11]} 25. Bxf6 {[%emt 0:00:16]} gxf6 {[%emt 0:00:02]} 26. Bf1 {[%emt 0:00:01]} Qd2 {[%emt 0:00:03]} 27. Qb1 {[%emt 0:00:03]} Bc2 {[%emt 0:00:07]} 28. Qb2 {[%emt 0:00:01]} Bxe4 {[%emt 0:00:04]} 29. Ne7+ {[%emt 0:00:02]} Kg7 {[%emt 0:00:04]} 30. Qb3 {[%emt 0:00:03]} Rd7 {[%emt 0:00:04]} 31. Qc4 {[%emt 0:00:11]} Rxe7 {[%emt 0:00:03]} 32. Qxe4 {[%emt 0:00:01]} Rd8 {[%emt 0:00:02]} 33. Re1 {[%emt 0:00:03]} Qg5 {[%emt 0:00:02]} 34. h4 {[%emt 0:00:02]} Qg6 {[%emt 0:00:02]} 35. Qe2 {[%emt 0:00:01]} Red7 {[%emt 0:00:01]} 36. Bg2 {[%emt 0:00:01]} Rd2 {[%emt 0:00:02]} 37. Qe3 {[%emt 0:00:01]} R2d3 {[%emt 0:00:02]} 38. Qe2 {[%emt 0:00:01]} Rd2 {[%emt 0:00:01]} 39. Qf3 {[%emt 0:00:02]} e4 {[%emt 0:00:03]} 40. Qf4 {[%emt 0:00:03]} f5 {[%emt 0:00:02]} 41. h5 {[%emt 0:00:01]} Qf6 {[%emt 0:00:02]} 42. Bh3 {[%emt 0:00:02]} Rd1 {[%emt 0:00:02]} 43. Rxd1 {[%emt 0:00:04]} Rxd1+ {[%emt 0:00:03]} 44. Kg2 {[%emt 0:00:02]} Rd7 {[%emt 0:00:01]} 45. Bxf5 {[%emt 0:00:01]} Re7 {[%emt 0:00:02]} 46. g4 {[%emt 0:00:02]} h6 {[%emt 0:00:01]} 47. Qe3 {[%emt 0:00:03]} Qg5 {[%emt 0:00:03]} 48. Qd4+ {[%emt 0:00:02]} Qf6 {[%emt 0:00:01]} 49. Qd8 {[%emt 0:00:02]} Qe5 {[%emt 0:00:03]} 50. Qd2 {[%emt 0:00:03]} e3 {[%emt 0:00:01]} 51. fxe3 {[%emt 0:00:03]} Qxe3 {[%emt 0:00:03]} 52. Qb2+ {[%emt 0:00:01]} Qe5 {[%emt 0:00:01]} 53. Qc1 {[%emt 0:00:04]} Qd5+ {[%emt 0:00:02]} 54. Kh3 {[%emt 0:00:02]} Qd6 {[%emt 0:00:02]} 55. g5 {[%emt 0:00:05]} Re5 {[%emt 0:00:04]} 56. gxh6+ {[%emt 0:00:02]} Qxh6 {[%emt 0:00:02]} 57. Qg1+ {[%emt 0:00:02]} Kf6 {[%emt 0:00:02]} 58. Bg4 {[%emt 0:00:02]} Qf4 {[%emt 0:00:02]} 59. Kh4 {[%emt 0:00:04]} Re4 {[%emt 0:00:02]} 60. Qg2 {[%emt 0:00:03]} Qxg4+ {[%emt 0:00:02]} 61. Qxg4 {[%emt 0:00:01]} Rxg4+ {[%emt 0:00:01]} 62. Kxg4 {[%emt 0:00:01]} c5 {[%emt 0:00:02]} 63. bxc5 {[%emt 0:00:01]} bxc5 {[%emt 0:00:01]} 64. a4 {[%emt 0:00:01]} c4 {[%emt 0:00:01]} 65. a5 {[%emt 0:00:01]} c3 {[%emt 0:00:01]} 66. a6 {[%emt 0:00:01]} c2 {[%emt 0:00:01]} 67. a7 {[%emt 0:00:02]} c1=Q {[%emt 0:00:02]} 68. a8=Q {[%emt 0:00:02]} Qg5+ {[%emt 0:00:02]} 69. Kh3 {[%emt 0:00:01]} Qxh5+ {[%emt 0:00:02]} 70. Kg2 {[%emt 0:00:01]} Qg4+ {[%emt 0:00:02]} 71. Kf2 {[%emt 0:00:01]} Qf4+ {[%emt 0:00:01]} 72. Ke1 {[%emt 0:00:01]} Qe3+ {[%emt 0:00:02]} 73. Kf1 {[%emt 0:00:02]} Qf4+ {[%emt 0:00:01]} 74. Kg1 {[%emt 0:00:01]} Qg5+ {[%emt 0:00:02]} 75. Kf1 {[%emt 0:00:02]} Qf5+ {[%emt 0:00:02]} 76. Kg1 {[%emt 0:00:01]} Qg5+ {[%emt 0:00:03]} 77. Kf1 {[%emt 0:00:01]} Kg7 {[%emt 0:00:03]} 78. Qa7 {[%emt 0:00:05]} Qf5+ {[%emt 0:00:03]} 79. Kg1 {[%emt 0:00:01]} Kg6 {[%emt 0:00:01]} 80. Qb6+ {[%emt 0:00:03]} f6 {[%emt 0:00:02]} 81. Qd8 {[%emt 0:00:02]} Qg4+ {[%emt 0:00:02]} 82. Kf1 {[%emt 0:00:02]} Qf4+ {[%emt 0:00:01]} 83. Kg1 {[%emt 0:00:01]} Qe3+ {[%emt 0:00:03]} 84. Kf1 {[%emt 0:00:01]} Qe6 {[%emt 0:00:02]} 85. Qb8 {[%emt 0:00:05]} f5 {[%emt 0:00:03]} 86. Qg3+ {[%emt 0:00:02]} Kf6 {[%emt 0:00:02]} 87. Qc3+ {[%emt 0:00:02]} Qe5 {[%emt 0:00:04]} 88. Qc6+ {[%emt 0:00:01]} Kg5 {[%emt 0:00:02]} 89. Qg2+ {[%emt 0:00:03]} Kf6 {[%emt 0:00:02]} 90. Qc6+ {[%emt 0:00:01]} Kg5 {[%emt 0:00:01]} 91. Qg2+ {[%emt 0:00:02]} Kh5 {[%emt 0:00:03]} 92. Qh3+ {[%emt 0:00:02]} Kg5 {[%emt 0:00:01]} 93. Qg2+ {[%emt 0:00:01]} 1/2-1/2

[Event "Queens Festival Europe 2022"]
[Site "Tornelo"]
[Date "2022.06.19"]
[Round "10.3"]
[White "Stastna, Martina"]
[Black "Shabanaj, Eglantina"]
[Result "0-1"]
[ECO "C91"]
[WhiteElo "1912"]
[BlackElo "1986"]
[Annotator "NA RC"]
[PlyCount "50"]
[EventDate "2022.06.19"]
[EventType "swiss"]
[EventCountry "NET"]
[SourceTitle "playchess.com"]
[Source "ChessBase"]
[SourceQuality "1"]
[TimeControl "180+2"]

1. e4 {[%emt 0:00:02]} e5 {[%emt 0:00:07]} 2. Nf3 {[%emt 0:00:02]} Nc6 {[%emt 0:00:02]} 3. Bb5 {[%emt 0:00:02]} a6 {[%emt 0:00:02]} 4. Ba4 {[%emt 0:00:02]} b5 {[%emt 0:00:03]} 5. Bb3 {[%emt 0:00:02]} d6 {[%emt 0:00:02]} 6. c3 {[%emt 0:00:05]} Be7 {[%emt 0:00:03]} 7. O-O {[%emt 0:00:03]} Nf6 {[%emt 0:00:03]} 8. d4 {[%emt 0:00:08]} Bg4 {[%emt 0:00:05]} 9. d5 {[%emt 0:00:10]} Na5 {[%emt 0:00:07]} 10. Bc2 {[%emt 0:00:02]} O-O {[%emt 0:00:03]} 11. h3 {[%emt 0:00:03]} Bh5 {[%emt 0:00:03]} 12. Nbd2 {[%emt 0:00:05]} c5 {[%emt 0:00:04]} 13. dxc6 {[%emt 0:00:09]} Nxc6 {[%emt 0:00:03]} 14. Re1 {[%emt 0:00:02]} Qd7 {[%emt 0:00:08]} 15. Nf1 {[%emt 0:00:03]} Rad8 {[%emt 0:00:04]} 16. Ng3 {[%emt 0:00:02]} Bg6 {[%emt 0:00:03]} 17. Bg5 {[%emt 0:00:11]} Nh5 {[%emt 0:00:03]} 18. Bxe7 {[%emt 0:00:06]} Nxe7 {[%emt 0:00:03]} 19. Nxh5 {[%emt 0:00:04]} Bxh5 {[%emt 0:00:03]} 20. Qd3 {[%emt 0:00:01]} Ng6 {[%emt 0:00:06]} 21. Rad1 {[%emt 0:00:12]} Nf4 {[%emt 0:00:04]} 22. Qe3 {[%emt 0:00:08]} h6 {[%emt 0:00:08]} 23. Kh2 {[%emt 0:00:08]} Rfe8 {[%emt 0:00:10]} 24. g3 {[%emt 0:00:04]} Qxh3+ {[%emt 0:00:06]} 25. Kg1 {[%emt 0:00:01]} Qg2# {[%emt 0:00:03]} 0-1

[Event "Queens Festival Europe 2022"]
[Site "Tornelo"]
[Date "2022.06.19"]
[Round "10.3"]
[White "Bayona, Karin Silvana"]
[Black "Lampard, Alice"]
[Result "0-1"]
[ECO "B34"]
[WhiteElo "1793"]
[BlackElo "1756"]
[Annotator "NA RC"]
[PlyCount "88"]
[EventDate "2022.06.19"]
[EventType "swiss"]
[EventCountry "NET"]
[SourceTitle "playchess.com"]
[Source "ChessBase"]
[SourceQuality "1"]
[TimeControl "180+2"]

1. e4 {[%emt 0:00:02]} c5 {[%emt 0:00:04]} 2. Nf3 {[%emt 0:00:03]} Nc6 {[%emt 0:00:06]} 3. d4 {[%emt 0:00:01]} cxd4 {[%emt 0:00:01]} 4. Nxd4 {[%emt 0:00:00]} g6 {[%emt 0:00:02]} 5. Nc3 {[%emt 0:00:03]} Bg7 {[%emt 0:00:02]} 6. Be3 {[%emt 0:00:01]} Nf6 {[%emt 0:00:02]} 7. Be2 {[%emt 0:00:06]} O-O {[%emt 0:00:04]} 8. O-O {[%emt 0:00:01]} d5 {[%emt 0:00:07]} 9. Nxc6 {[%emt 0:00:11]} bxc6 {[%emt 0:00:05]} 10. exd5 {[%emt 0:00:06]} Nxd5 {[%emt 0:00:05]} 11. Nxd5 {[%emt 0:00:05]} cxd5 {[%emt 0:00:01]} 12. c3 {[%emt 0:00:02]} a5 {[%emt 0:00:08]} 13. Qd2 {[%emt 0:00:03]} e6 {[%emt 0:00:10]} 14. Bh6 {[%emt 0:00:06]} Ba6 {[%emt 0:00:08]} 15. Bxg7 {[%emt 0:00:05]} Kxg7 {[%emt 0:00:00]} 16. Qd4+ {[%emt 0:00:08]} Qf6 {[%emt 0:00:02]} 17. Qxf6+ {[%emt 0:00:04]} Kxf6 {[%emt 0:00:00]} 18. Bxa6 {[%emt 0:00:02]} Rxa6 {[%emt 0:00:02]} 19. Rfe1 {[%emt 0:00:05]} Rb8 {[%emt 0:00:03]} 20. Re2 {[%emt 0:00:06]} Rab6 {[%emt 0:00:01]} 21. Rb1 {[%emt 0:00:10]} a4 {[%emt 0:00:02]} 22. g3 {[%emt 0:00:05]} Rc8 {[%emt 0:00:05]} 23. Kg2 {[%emt 0:00:07]} Rxc3 {[%emt 0:00:05]} 24. Rd2 {[%emt 0:00:14]} Rc4 {[%emt 0:00:11]} 25. Rd3 {[%emt 0:00:06]} Rcb4 {[%emt 0:00:06]} 26. Rd2 {[%emt 0:00:07]} Ke5 {[%emt 0:00:12]} 27. Kf3 {[%emt 0:00:13]} Kd6 {[%emt 0:00:11]} 28. Rc2 {[%emt 0:00:04]} Rc6 {[%emt 0:00:08]} 29. Rd2 {[%emt 0:00:07]} Rc3+ {[%emt 0:00:03]} 30. Ke2 {[%emt 0:00:03]} Rcc4 {[%emt 0:00:10]} 31. a3 {[%emt 0:00:09]} Rb3 {[%emt 0:00:02]} 32. f3 {[%emt 0:00:14]} Rc5 {[%emt 0:00:06]} 33. Kf2 {[%emt 0:00:02]} Rcb5 {[%emt 0:00:03]} 34. Ke2 {[%emt 0:00:03]} Rxa3 {[%emt 0:00:03]} 35. Rc2 {[%emt 0:00:03]} Rab3 {[%emt 0:00:04]} 36. f4 {[%emt 0:00:05]} a3 {[%emt 0:00:03]} 37. Rbc1 {[%emt 0:00:06]} Rxb2 {[%emt 0:00:02]} 38. Kf3 {[%emt 0:00:06]} a2 {[%emt 0:00:03]} 39. Rc6+ {[%emt 0:00:02]} Ke7 {[%emt 0:00:02]} 40. Rc7+ {[%emt 0:00:02]} Kf6 {[%emt 0:00:02]} 41. g4 {[%emt 0:00:05]} R5b3+ {[%emt 0:00:03]} 42. R7c3 {[%emt 0:00:10]} Rxc3+ {[%emt 0:00:01]} 43. Rxc3 {[%emt 0:00:01]} a1=Q {[%emt 0:00:02]} 44. g5+ {[%emt 0:00:05]} Kg7 {[%emt 0:00:02]} 0-1

[Event "Queens Festival Europe 2022"]
[Site "Tornelo"]
[Date "2022.06.19"]
[Round "10.4"]
[White "Tsakona, Maria"]
[Black "Machlik, Monika"]
[Result "0-1"]
[ECO "B13"]
[WhiteElo "2007"]
[BlackElo "2134"]
[Annotator "NA RC"]
[PlyCount "190"]
[EventDate "2022.06.19"]
[EventType "swiss"]
[EventCountry "NET"]
[SourceTitle "playchess.com"]
[Source "ChessBase"]
[SourceQuality "1"]
[TimeControl "180+2"]

1. e4 {[%emt 0:00:02]} c6 {[%emt 0:00:05]} 2. d4 {[%emt 0:00:02]} d5 {[%emt 0:00:01]} 3. exd5 {[%emt 0:00:00]} cxd5 {[%emt 0:00:02]} 4. Bd3 {[%emt 0:00:01]} Nc6 {[%emt 0:00:01]} 5. c3 {[%emt 0:00:00]} Nf6 {[%emt 0:00:02]} 6. h3 {[%emt 0:00:01]} g6 {[%emt 0:00:01]} 7. Nf3 {[%emt 0:00:01]} Bf5 {[%emt 0:00:04]} 8. Ne5 {[%emt 0:00:02]} Bxd3 {[%emt 0:00:08]} 9. Nxd3 {[%emt 0:00:00]} Bg7 {[%emt 0:00:03]} 10. O-O {[%emt 0:00:01]} Ne4 {[%emt 0:00:08]} 11. Bf4 {[%emt 0:00:02]} O-O {[%emt 0:00:09]} 12. Nd2 {[%emt 0:00:01]} Nxd2 {[%emt 0:00:02]} 13. Qxd2 {[%emt 0:00:02]} e6 {[%emt 0:00:06]} 14. Rfe1 {[%emt 0:00:03]} Re8 {[%emt 0:00:02]} 15. Bg5 {[%emt 0:00:05]} Qc7 {[%emt 0:00:04]} 16. h4 {[%emt 0:00:05]} b5 {[%emt 0:00:21]} 17. a3 {[%emt 0:00:06]} a5 {[%emt 0:00:02]} 18. b4 {[%emt 0:00:07]} axb4 {[%emt 0:00:03]} 19. axb4 {[%emt 0:00:00]} Qb6 {[%emt 0:00:12]} 20. h5 {[%emt 0:00:02]} Ra7 {[%emt 0:00:07]} 21. Qf4 {[%emt 0:00:21]} Rea8 {[%emt 0:00:13]} 22. Rxa7 {[%emt 0:00:01]} Rxa7 {[%emt 0:00:04]} 23. h6 {[%emt 0:00:01]} Bh8 {[%emt 0:00:06]} 24. Nc5 {[%emt 0:00:06]} Qc7 {[%emt 0:00:10]} 25. Qh4 {[%emt 0:00:16]} Ne7 {[%emt 0:00:10]} 26. g4 {[%emt 0:00:26]} Qd8 {[%emt 0:01:13]} 27. Nd3 {[%emt 0:01:18]} Qf8 {[%emt 0:00:03]} 28. Kg2 {[%emt 0:00:11]} f6 {[%emt 0:00:01]} 29. Bd2 {[%emt 0:00:04]} Qf7 {[%emt 0:00:04]} 30. Nc5 {[%emt 0:00:03]} e5 {[%emt 0:00:04]} 31. dxe5 {[%emt 0:00:04]} fxe5 {[%emt 0:00:01]} 32. Bg5 {[%emt 0:00:02]} Nc6 {[%emt 0:00:03]} 33. Qg3 {[%emt 0:00:06]} e4 {[%emt 0:00:03]} 34. Rd1 {[%emt 0:00:13]} Be5 {[%emt 0:00:02]} 35. Qe3 {[%emt 0:00:05]} Ra8 {[%emt 0:00:04]} 36. Rf1 {[%emt 0:00:08]} Ra3 {[%emt 0:00:02]} 37. Rc1 {[%emt 0:00:03]} Bf6 {[%emt 0:00:03]} 38. Bf4 {[%emt 0:00:02]} Be5 {[%emt 0:00:02]} 39. Bg5 {[%emt 0:00:03]} Qe8 {[%emt 0:00:02]} 40. Qd2 {[%emt 0:00:02]} Qf7 {[%emt 0:00:02]} 41. Be3 {[%emt 0:00:02]} Bf6 {[%emt 0:00:03]} 42. Qc2 {[%emt 0:00:02]} Rxc3 {[%emt 0:00:04]} 43. Qd2 {[%emt 0:00:01]} Rxc1 {[%emt 0:00:01]} 44. Qxc1 {[%emt 0:00:00]} d4 {[%emt 0:00:01]} 45. Bf4 {[%emt 0:00:02]} Be5 {[%emt 0:00:02]} 46. Bg5 {[%emt 0:00:01]} Qf3+ {[%emt 0:00:02]} 47. Kg1 {[%emt 0:00:05]} Qxg4+ {[%emt 0:00:02]} 48. Kf1 {[%emt 0:00:01]} Qh3+ {[%emt 0:00:01]} 49. Ke2 {[%emt 0:00:02]} Qg4+ {[%emt 0:00:02]} 50. Kf1 {[%emt 0:00:02]} Qh3+ {[%emt 0:00:02]} 51. Ke2 {[%emt 0:00:01]} Qf3+ {[%emt 0:00:01]} 52. Kf1 {[%emt 0:00:05]} Qh1+ {[%emt 0:00:03]} 53. Ke2 {[%emt 0:00:01]} Qxc1 {[%emt 0:00:01]} 54. Bxc1 {[%emt 0:00:00]} Nxb4 {[%emt 0:00:03]} 55. Nxe4 {[%emt 0:00:01]} d3+ {[%emt 0:00:03]} 56. Kd1 {[%emt 0:00:04]} Bd4 {[%emt 0:00:02]} 57. Bd2 {[%emt 0:00:01]} Nd5 {[%emt 0:00:03]} 58. Nd6 {[%emt 0:00:03]} b4 {[%emt 0:00:03]} 59. Nb5 {[%emt 0:00:01]} Bc3 {[%emt 0:00:02]} 60. Nd6 {[%emt 0:00:05]} Kf8 {[%emt 0:00:02]} 61. Ne4 {[%emt 0:00:02]} Ke7 {[%emt 0:00:03]} 62. Nc5 {[%emt 0:00:01]} Kd6 {[%emt 0:00:02]} 63. Nxd3 {[%emt 0:00:02]} Ke6 {[%emt 0:00:02]} 64. Nf4+ {[%emt 0:00:05]} Nxf4 {[%emt 0:00:02]} 65. Bxf4 {[%emt 0:00:00]} Kf5 {[%emt 0:00:02]} 66. Be3 {[%emt 0:00:00]} Ke4 {[%emt 0:00:03]} 67. Kc2 {[%emt 0:00:01]} Be5 {[%emt 0:00:01]} 68. Kb3 {[%emt 0:00:02]} Bf4 {[%emt 0:00:02]} 69. Bc5 {[%emt 0:00:02]} Bxh6 {[%emt 0:00:02]} 70. Kxb4 {[%emt 0:00:01]} Kf3 {[%emt 0:00:01]} 71. Kc4 {[%emt 0:00:01]} Bf4 {[%emt 0:00:02]} 72. Kd3 {[%emt 0:00:01]} h5 {[%emt 0:00:01]} 73. Be7 {[%emt 0:00:03]} g5 {[%emt 0:00:02]} 74. Bc5 {[%emt 0:00:03]} h4 {[%emt 0:00:01]} 75. Bb4 {[%emt 0:00:02]} h3 {[%emt 0:00:01]} 76. Kc2 {[%emt 0:00:02]} h2 {[%emt 0:00:02]} 77. Kd1 {[%emt 0:00:00]} h1=Q+ {[%emt 0:00:02]} 78. Kc2 {[%emt 0:00:00]} Qg2 {[%emt 0:00:02]} 79. Kb3 {[%emt 0:00:00]} Qxf2 {[%emt 0:00:02]} 80. Ka4 {[%emt 0:00:00]} Qe2 {[%emt 0:00:01]} 81. Ka5 {[%emt 0:00:02]} Qd3 {[%emt 0:00:01]} 82. Kb6 {[%emt 0:00:02]} Be3+ {[%emt 0:00:02]} 83. Ka5 {[%emt 0:00:00]} Qd5+ {[%emt 0:00:02]} 84. Ka4 {[%emt 0:00:00]} Qc6+ {[%emt 0:00:02]} 85. Kb3 {[%emt 0:00:00]} Qd5+ {[%emt 0:00:01]} 86. Ka4 {[%emt 0:00:00]} g4 {[%emt 0:00:02]} 87. Ka3 {[%emt 0:00:02]} g3 {[%emt 0:00:01]} 88. Ka4 {[%emt 0:00:00]} g2 {[%emt 0:00:02]} 89. Ka3 {[%emt 0:00:00]} Bc5 {[%emt 0:00:02]} 90. Ka4 {[%emt 0:00:00]} Bxb4 {[%emt 0:00:01]} 91. Kxb4 {[%emt 0:00:01]} g1=Q {[%emt 0:00:03]} 92. Ka4 {[%emt 0:00:00]} Qg4+ {[%emt 0:00:03]} 93. Ka3 {[%emt 0:00:01]} Qge4 {[%emt 0:00:02]} 94. Kb2 {[%emt 0:00:00]} Qd2+ {[%emt 0:00:02]} 95. Ka1 {[%emt 0:00:02]} Qee1# {[%emt 0:00:02]} 0-1